bitfinex-derivatives/quotes_ETHF0:USTF0_20250906
["timestamp","ask_amount","ask_price","bid_price","bid_amount"]
[1757174238783,0.4437,4274.6,4274.5,3.4221]
[1757174239088,0.90499697,4274.6,4274.5,4.2107]
[1757174239395,0.7602,4274.6,4274.5,4.2107]
[1757174239782,0.90499793,4274.6,4274.5,4.2107]
[1757174239983,0.7602,4274.6,4274.5,4.2107]
[1757174241497,0.90500223,4274.6,4274.5,4.2107]
[1757174241786,0.90500223,4274.6,4274.5,3.882]
[1757174241985,0.4437,4274.1,4274.0,3.9717]
[1757174242181,0.4437,4274.1,4274.0,4.2107]
[1757174242182,0.7602,4274.1,4274.0,4.2107]
[1757174243178,0.7602,4274.1,4274.0,3.6611]
[1757174243382,1.39330964,4274.1,4274.0,3.4468]
[1757174243592,1.53802717,4274.1,4274.0,3.4468]
[1757174243987,0.90491753,4274.1,4274.0,3.4468]
[1757174244587,0.90491753,4274.1,4274.0,3.6611]
[1757174245690,0.90491753,4274.1,4274.0,0.4533]
[1757174245995,0.90482585,4274.1,4274.0,0.4533]
[1757174246187,0.90482585,4274.1,4274.0,0.239]
[1757174247085,0.90482585,4274.1,4274.0,0.4533]
[1757174248092,0.90482585,4274.1,4274.0,0.239]
[1757174248788,0.90482585,4274.1,4274.0,1.0029]
[1757174249092,3.2078,4274.9,4274.0,4.0179]
[1757174249093,0.3165,4274.9,4274.0,4.0179]
[1757174249291,0.99051811,4274.8,4274.7,0.4352]
[1757174249591,1.53691811,4274.8,4274.7,0.7639]
[1757174252196,0.1444995,4274.8,4274.7,0.7639]
[1757174252389,0.6747995,4274.8,4274.7,0.7639]
[1757174253980,1.31445111,4274.8,4274.7,0.7639]
[1757174255696,1.54435111,4274.8,4274.6,3.2078]
[1757174255892,1.5442916,4274.7,4274.6,3.2078]
[1757174256196,1.5442916,4274.7,4274.6,3.6611]
[1757174258791,1.5442916,4274.7,4274.6,3.9898]
[1757174258989,1.5442916,4274.7,4274.6,4.2107]
[1757174259186,1.5442916,4274.7,4274.6,3.882]
[1757174259392,1.5442916,4274.7,4274.6,3.6611]
[1757174259988,0.1389,4274.5,4274.1,3.2078]
[1757174260185,0.7602,4274.1,4274.0,0.7639]
[1757174260390,0.7602,4274.1,4274.0,1.0029]
[1757174260698,0.90462645,4274.1,4274.0,0.239]
[1757174261198,1.54415627,4274.1,4274.0,0.239]
[1757174264900,2.57918952,4274.1,4274.0,0.239]
[1757174267604,2.57914117,4274.1,4274.0,0.239]
[1757174269307,1.54410792,4274.1,4274.0,0.4431]
[1757174269601,2.57914117,4274.1,4274.0,0.7633]
[1757174269806,2.57914117,4274.1,4274.0,0.4431]
[1757174270403,2.57914117,4274.1,4274.0,0.239]
[1757174271899,2.57914117,4274.1,4274.0,0.4431]
[1757174272100,0.3581781,4274.1,4274.0,1.1149]
[1757174272303,0.8917781,4274.1,4274.0,0.9885]
[1757174272598,1.53122313,4274.1,4274.0,0.9885]
[1757174273910,0.8917781,4274.1,4274.0,0.9885]
[1757174274104,1.53107615,4274.1,4274.0,0.9885]
[1757174276002,1.53107615,4274.1,4274.0,0.4431]
[1757174276199,1.53107615,4274.1,4274.0,0.9885]
[1757174277204,1.53107615,4274.1,4274.0,0.6683]
[1757174278303,0.8917781,4274.1,4274.0,0.6683]
[1757174278508,1.53095485,4274.1,4274.0,0.6683]
[1757174278807,0.8917781,4274.1,4274.0,0.9885]
[1757174279409,1.53093621,4274.1,4274.0,0.9885]
[1757174280312,1.53093621,4274.1,4274.0,0.6683]
[1757174280510,1.53093621,4274.1,4274.0,0.9885]
[1757174281309,0.7474,4273.7,4273.6,3.2078]
[1757174281613,1.78243325,4273.7,4273.6,3.4468]
[1757174281798,1.78243325,4273.7,4273.6,3.6509]
[1757174282705,1.78243325,4273.7,4273.6,3.4468]
[1757174283106,1.92713048,4273.7,4273.6,3.4468]
[1757174283705,0.89209723,4273.7,4273.6,3.6509]
[1757174283912,0.89209723,4273.7,4273.6,4.1963]
[1757174284509,0.89209723,4273.7,4273.6,3.4468]
[1757174284905,0.57009723,4273.7,4273.0,3.528]
[1757174285113,1.78243325,4273.1,4273.0,3.4119]
[1757174285415,1.78243325,4273.1,4273.0,3.6509]
[1757174285615,1.78243325,4273.1,4273.0,4.1963]
[1757174286407,1.78243325,4273.1,4273.0,3.4119]
[1757174286408,1.92719957,4273.1,4273.0,3.4119]
[1757174286610,1.92719957,4273.1,4273.0,3.2078]
[1757174286808,0.89216632,4273.1,4273.0,3.2078]
[1757174287016,1.92719957,4273.1,4273.0,3.4119]
[1757174287910,2.56580173,4273.1,4273.0,3.2078]
[1757174289508,2.56580173,4273.1,4273.0,3.6371]
[1757174289709,1.53076848,4273.1,4273.0,3.9573]
[1757174289909,1.31546848,4273.1,4273.0,3.9573]
[1757174290111,0.78336848,4273.1,4273.0,4.0837]
[1757174290412,1.31546848,4273.1,4273.0,4.0837]
[1757174291311,0.89216632,4273.1,4273.0,3.9573]
[1757174292207,0.89216632,4273.1,4273.0,3.4119]
[1757174292413,0.7474,4272.8,4272.7,0.2041]
[1757174292615,1.78243325,4272.8,4272.7,0.9885]
[1757174295321,1.78243325,4272.8,4272.7,0.6683]
[1757174295522,0.4254,4272.6,4272.5,3.4468]
[1757174295718,0.7474,4272.6,4272.5,3.4468]
[1757174295915,0.89186252,4272.6,4272.5,3.2078]
[1757174296120,0.4254,4272.1,4272.0,0.2041]
[1757174296321,1.78243325,4272.1,4272.0,0.4431]
[1757174297412,1.78243325,4272.1,4272.0,0.2041]
[1757174297613,0.7474,4271.5,4271.4,3.9573]
[1757174297823,0.7474,4271.5,4271.4,4.1963]
[1757174298027,0.322,4271.7,4271.5,0.3202]
[1757174298223,0.5321,4271.7,4271.6,0.7495]
[1757174299325,0.2101,4271.7,4271.6,0.7495]
[1757174299520,1.35943325,4271.8,4271.7,0.3095]
[1757174299720,1.57863325,4271.8,4271.7,0.9645]
[1757174300621,1.03503325,4272.4,4271.7,0.9645]
[1757174300928,1.69753325,4272.4,4272.3,0.2053]
[1757174301122,1.84176582,4272.4,4272.3,0.2053]
[1757174301622,2.80241744,4272.4,4272.3,0.2053]
[1757174301825,2.56341744,4272.4,4272.3,0.2053]
[1757174302926,2.56341744,4272.4,4272.0,0.3095]
[1757174303132,1.78293325,4272.1,4272.0,0.7255]
[1757174303323,2.41918487,4272.1,4272.0,0.7255]
[1757174305528,1.38415162,4272.1,4272.0,0.7255]
[1757174306121,0.1337,4272.0,4271.7,0.239]
[1757174306424,0.5436,4271.8,4271.7,0.655]
[1757174306828,0.5436,4271.8,4271.7,0.9645]
[1757174308524,0.5436,4272.3,4272.2,0.2053]
[1757174308830,1.51839831,4272.3,4272.2,0.7255]
[1757174309325,1.2950199,4273.1,4272.2,0.416]
[1757174309532,0.2192,4272.5,4272.4,3.6238]
[1757174309828,0.5436,4272.5,4272.4,0.7255]
[1757174310023,0.7479,4272.5,4272.4,0.7255]
[1757174311023,0.5436,4272.5,4272.4,0.7255]
[1757174311224,0.5477,4273.0,4272.9,0.2053]
[1757174311437,1.64324709,4273.0,4272.9,0.2053]
[1757174312727,1.64324709,4273.0,4272.7,0.3095]
[1757174312933,1.51904709,4272.9,4272.8,0.2053]
[1757174314630,0.26094709,4272.9,4272.8,6.25455989]
[1757174314834,0.3244,4273.8,4272.8,10.06897702]
[1757174315032,0.4581,4274.5,4273.8,1.2950199]
[1757174315227,0.3244,4274.8,4273.9,0.241]
[1757174315427,0.5436,4274.8,4274.6,3.2078]
[1757174315732,0.1337,4275.0,4274.7,0.241]
[1757174315921,0.3244,4275.4,4274.7,0.241]
[1757174316124,0.5436,4275.4,4275.3,3.2078]
[1757174316321,0.7479,4275.4,4275.3,3.0909]
[1757174316934,0.3244,4275.4,4275.3,3.0909]
[1757174318436,0.7479,4275.4,4275.3,3.0909]
[1757174318637,0.7479,4275.4,4275.3,0.241]
[1757174318823,0.5436,4274.9,4274.8,3.2078]
[1757174319025,0.5436,4274.9,4274.8,3.4488]
[1757174319226,0.7479,4274.9,4274.8,3.2078]
[1757174319435,0.7479,4274.9,4274.8,3.4488]
[1757174320439,0.5436,4274.9,4274.8,3.4488]
[1757174320928,0.3244,4274.9,4274.8,3.4488]
[1757174321129,0.1337,4275.0,4274.8,7.4488]
[1757174321438,0.3244,4274.9,4274.8,7.4488]
[1757174322526,0.7479,4274.9,4274.8,3.4488]
[1757174323236,0.3244,4274.9,4274.8,3.4488]
[1757174323436,0.1337,4275.0,4274.8,3.4488]
[1757174323634,0.3244,4275.4,4274.8,3.4488]
[1757174323840,0.3244,4275.4,4275.3,3.2078]
[1757174324038,0.3244,4275.4,4275.3,3.4488]
[1757174325428,0.7479,4275.4,4275.3,3.4488]
[1757174325730,0.7479,4274.9,4274.8,3.2078]
[1757174326139,0.3244,4274.9,4274.8,3.4488]
[1757174328042,0.5436,4274.9,4274.8,3.4488]
[1757174329031,0.3244,4274.9,4274.8,3.4488]
[1757174329445,0.5399,4274.9,4274.8,3.4488]
[1757174329645,0.7525,4274.9,4274.8,3.4488]
[1757174329835,0.7525,4274.9,4274.8,3.2078]
[1757174330140,0.7525,4274.9,4271.5,1.05328]
[1757174330141,0.7304,4273.7,4273.6,0.4204]
[1757174330445,0.7304,4273.7,4273.6,0.6604]
[1757174330643,0.7304,4273.7,4273.6,0.9588]
[1757174332245,0.7304,4273.7,4273.6,0.4204]
[1757174332542,0.7304,4273.7,4273.6,0.6604]
[1757174333441,0.7304,4273.7,4273.6,0.9588]
[1757174333839,0.124,4274.0,4273.6,0.9588]
[1757174334043,0.5178,4274.4,4274.3,0.4204]
[1757174334242,0.7304,4274.4,4274.3,0.6604]
[1757174334646,0.7304,4274.4,4274.3,0.96137787]
[1757174335346,0.7304,4274.4,4274.3,0.54097787]
[1757174335937,0.7304,4274.4,4274.3,0.75177787]
[1757174337540,0.3023,4274.4,4274.3,1.25977787]
[1757174337744,3.2078,4275.1,4274.8,0.4204]
[1757174338045,0.5618,4275.0,4274.9,0.51177787]
[1757174338347,0.8641,4275.0,4274.9,0.51177787]
[1757174340548,0.8641,4275.0,4274.9,0.72137787]
[1757174342348,0.8641,4275.0,4274.9,1.01977787]
[1757174342552,0.8641,4275.0,4274.9,0.72137787]
[1757174343256,1.48692676,4275.0,4274.9,0.72137787]
[1757174343444,0.124,4274.5,4274.3,0.24]
[1757174343649,0.7304,4273.8,4273.7,0.7188]
[1757174343946,0.7304,4273.8,4273.7,0.9588]
[1757174344347,0.7304,4273.8,4273.7,0.4204]
[1757174344554,0.7304,4273.8,4273.7,0.4508]
[1757174344948,0.7304,4273.8,4273.3,0.2984]
[1757174344949,0.3023,4273.7,4273.3,0.2984]
[1757174345248,0.7304,4273.4,4273.3,0.5092]
[1757174345454,0.7304,4273.4,4273.3,0.9588]
[1757174347849,0.2155,4273.4,4273.3,0.9588]
[1757174348060,0.4281,4273.4,4273.0,3.2078]
[1757174348352,0.124,4273.5,4273.0,3.2078]
[1757174348353,0.7304,4273.1,4273.0,3.2078]
[1757174348550,0.7304,4272.8,4272.7,0.241]
[1757174350355,0.124,4272.5,4271.9,3.5062]
[1757174350658,0.7304,4272.0,4271.9,3.9266]
[1757174350854,0.7304,4272.0,4271.9,0.9598]
[1757174351054,0.8544,4272.0,4271.9,0.9598]
[1757174351359,0.8544,4272.0,4271.9,0.4518]
[1757174351557,0.7304,4272.0,4271.9,0.9598]
[1757174352454,3.2078,4272.8,4272.6,0.7188]
[1757174352455,0.2155,4272.7,4272.6,0.7188]
[1757174352656,3.2078,4272.8,4272.7,0.2984]
[1757174352862,3.7256,4272.8,4272.7,0.7188]
[1757174353057,3.9382,4272.8,4272.7,0.7188]
[1757174354048,3.4233,4272.8,4272.7,0.7188]
[1757174354253,3.9382,4272.8,4272.7,0.4204]
[1757174354857,3.9382,4272.8,4272.7,0.7188]
[1757174355866,3.6359,4272.8,4272.7,0.7188]
[1757174356160,3.4233,4272.8,4272.7,0.7188]
[1757174356759,0.2155,4272.8,4272.7,0.7188]
[1757174357460,0.5178,4272.8,4272.7,0.7188]
[1757174357654,0.7304,4272.8,4272.7,0.7188]
[1757174358861,3.3318,4273.5,4272.7,0.4204]
[1757174359056,0.2249,4272.9,4272.8,0.7391]
[1757174359964,0.3092,4273.1,4272.8,0.7391]
[1757174360163,0.5341,4272.9,4272.8,0.7391]
[1757174362157,0.7473,4272.9,4272.5,0.241]
[1757174362461,0.3092,4272.4,4271.6,0.3261]
[1757174362665,0.7473,4271.7,4271.6,0.7391]
[1757174362965,0.7473,4271.7,4271.6,0.9801]
[1757174364563,0.2249,4271.7,4271.6,0.9801]
[1757174365660,0.2249,4271.7,4271.6,0.7391]
[1757174365861,0.2249,4271.7,4271.6,0.9791]
[1757174366056,0.2249,4272.1,4272.0,0.1293]
[1757174366257,0.2249,4272.1,4272.0,0.8684]
[1757174366462,0.7473,4272.1,4272.0,0.7391]
[1757174367661,0.4381,4272.1,4272.0,0.8684]
[1757174368564,0.4381,4272.1,4272.0,0.7391]
[1757174368565,0.7473,4272.1,4272.0,0.7391]
[1757174368860,0.2249,4272.1,4272.0,0.8684]
[1757174369061,0.5341,4272.2,4272.1,0.3261]
[1757174369258,0.7473,4272.2,4272.1,0.7391]
[1757174369457,3.2078,4272.4,4272.1,0.9791]
[1757174369656,3.517,4272.4,4272.2,0.3261]
[1757174369857,0.3092,4272.4,4272.2,0.3261]
[1757174370154,0.5341,4272.4,4272.3,0.7391]
[1757174370668,0.7473,4272.4,4272.3,0.7391]
[1757174372565,0.7473,4272.4,4272.1,0.24]
[1757174372860,0.5341,4271.8,4271.7,0.7391]
[1757174373062,0.2249,4271.9,4271.8,0.7391]
[1757174376273,0.3092,4272.1,4271.8,0.7391]
[1757174376462,0.2249,4272.0,4271.7,0.24]
[1757174376661,0.2249,4272.0,4271.9,0.413]
[1757174376864,0.559,4272.5,4272.4,0.413]
[1757174377071,1.49603632,4272.5,4272.4,0.7391]
[1757174377270,1.37513632,4272.5,4272.4,0.7391]
[1757174378470,1.49603632,4272.5,4272.4,0.7391]
[1757174378772,1.37513632,4272.5,4272.4,0.7391]
[1757174379371,1.37545369,4272.5,4272.4,0.7391]
[1757174381771,1.49635369,4272.5,4272.4,0.7391]
[1757174382161,1.49635369,4272.5,4272.0,0.1293]
[1757174382162,0.2249,4272.0,4271.9,0.4554]
[1757174382362,0.8682,4272.0,4271.9,0.7815]
[1757174382966,1.49640561,4272.0,4271.9,0.4554]
[1757174383674,1.49640561,4272.0,4271.9,0.7815]
[1757174384277,1.49640561,4272.0,4271.9,0.9791]
[1757174385171,1.49640561,4272.0,4271.9,0.653]
[1757174385480,1.49640561,4272.0,4271.9,0.24]
[1757174385978,4.70420561,4272.0,4271.9,0.24]
[1757174387191,0.3092,4271.9,4271.7,0.241]
[1757174387396,0.7473,4271.8,4271.7,0.4564]
[1757174389690,3.2078,4272.0,4271.8,0.3032]
[1757174389995,3.9449,4272.0,4271.9,0.7368]
[1757174390290,1.18458036,4272.0,4271.7,0.3032]
[1757174390497,0.7371,4271.8,4271.7,0.7368]
[1757174390696,0.7371,4271.8,4271.7,0.9768]
[1757174391392,1.36690391,4271.8,4271.7,0.9768]
[1757174391790,0.7371,4271.8,4271.7,0.9768]
[1757174391991,0.7371,4271.8,4271.7,0.7368]
[1757174392192,1.36712299,4271.8,4271.7,0.9768]
[1757174392492,0.7371,4272.4,4272.3,0.221]
[1757174392699,1.36713012,4272.4,4272.3,0.7368]
[1757174393003,1.36713012,4272.4,4271.6,0.3032]
[1757174393200,0.63003012,4272.3,4272.2,0.221]
[1757174393392,1.05523012,4272.3,4272.2,0.7368]
[1757174393593,0.83523012,4272.3,4272.2,0.7368]
[1757174393798,1.14713012,4272.3,4272.2,0.7368]
[1757174394001,1.36713012,4272.3,4272.2,0.3032]
[1757174394201,1.36713012,4272.3,4272.2,0.7642]
[1757174394592,1.36713012,4272.3,4272.2,0.461]
[1757174395699,1.36713012,4272.3,4272.2,0.5242]
[1757174395894,0.4252,4271.9,4271.8,0.3032]
[1757174396095,0.7371,4271.9,4271.8,0.7642]
[1757174396296,2.09128417,4271.9,4271.8,0.24]
[1757174397003,0.7371,4271.4,4271.3,3.732]
[1757174397193,0.7371,4271.4,4271.3,3.972]
[1757174397703,0.7371,4271.4,4271.3,3.732]
[1757174397901,0.7371,4271.4,4271.3,3.972]
[1757174398607,0.7371,4271.4,4271.3,4.1846]
[1757174399705,0.2052,4271.4,4271.3,4.1846]
[1757174400099,0.5171,4271.4,4271.3,4.1846]
[1757174400501,0.7371,4271.4,4271.3,4.1846]
[1757174401001,0.7371,4271.4,4271.3,3.2078]
[1757174401213,1.36705669,4271.4,4271.3,3.4288]
[1757174401505,0.4252,4270.8,4270.7,3.2078]
[1757174401807,0.7371,4270.8,4270.7,3.9446]
[1757174402004,0.3119,4270.7,4270.6,33.715]
[1757174402506,0.4252,4270.3,4270.2,0.5242]
[1757174402707,0.7371,4270.3,4270.2,0.7368]
[1757174402903,0.4252,4270.3,4270.2,0.9768]
[1757174403605,0.7371,4269.7,4269.6,3.9446]
[1757174403806,0.2052,4269.8,4269.7,0.7368]
[1757174404314,0.131,4270.5,4269.7,0.4336]
[1757174405310,0.131,4270.5,4269.8,0.3032]
[1757174405511,0.5171,4270.0,4269.9,0.9768]
[1757174406818,0.7371,4270.0,4269.9,0.7368]
[1757174407015,0.8681,4270.0,4269.9,0.9768]
[1757174407210,0.8681,4270.0,4269.9,0.24]
[1757174407409,0.8681,4270.0,4269.9,0.9768]
[1757174407715,3.2078,4271.3,4270.8,0.3032]
[1757174407907,3.9449,4271.3,4271.2,0.7368]
[1757174408107,3.413,4271.3,4271.2,0.7368]
[1757174408714,3.2078,4271.9,4271.8,0.7368]
[1757174408910,3.9449,4271.9,4270.9,3.2078]
[1757174409113,3.9449,4271.4,4270.7,0.3032]
[1757174409314,0.4252,4270.7,4270.6,0.461]
[1757174409615,0.7371,4271.8,4271.7,0.7368]
[1757174409816,1.3562765,4271.8,4271.7,0.7368]
[1757174410007,0.7371,4271.8,4271.7,0.4336]
[1757174410518,0.2052,4271.8,4271.7,0.7368]
[1757174410708,0.2052,4271.8,4271.7,0.9768]
[1757174410904,0.4252,4271.1,4271.0,0.5242]
[1757174411110,0.131,4271.5,4271.0,0.5598]
[1757174411312,0.131,4271.5,4271.4,0.7368]
[1757174411313,0.7371,4271.5,4271.4,0.7368]
[1757174412208,0.7371,4271.5,4271.4,0.221]
[1757174412417,0.8681,4271.5,4271.1,0.24]
[1757174412615,0.131,4271.0,4270.1,3.2078]
[1757174412916,0.5171,4270.3,4270.2,0.9768]
[1757174413116,0.2052,4270.3,4270.2,0.9768]
[1757174415116,0.5171,4270.3,4270.2,0.9768]
[1757174415417,0.5171,4270.3,4270.2,0.4336]
[1757174415418,0.7371,4270.3,4270.2,0.4336]
[1757174415615,0.2052,4270.3,4270.2,0.9768]
[1757174415818,0.5171,4270.6,4270.5,0.7368]
[1757174416326,0.7371,4270.6,4270.5,0.7368]
[1757174416818,3.2078,4270.7,4270.6,0.7368]
[1757174417018,3.2078,4270.7,4270.6,0.9768]
[1757174417914,3.2078,4271.2,4271.0,0.4336]
[1757174418107,0.61837789,4271.1,4271.0,1.103]
[1757174418517,0.3119,4271.4,4271.1,0.3032]
[1757174418712,0.2052,4271.4,4271.3,0.7368]
[1757174419112,1.34797794,4271.4,4271.3,0.7368]
[1757174419713,0.61837794,4271.4,4271.3,0.7368]
[1757174419923,3.2078,4271.7,4271.4,0.3216]
[1757174420225,3.2078,4271.7,4271.0,0.3662]
[1757174420226,0.7357,4271.1,4271.0,0.4166]
[1757174420517,0.7357,4271.1,4271.0,0.6566]
[1757174420720,0.4258,4271.1,4270.8,3.2078]
[1757174420918,0.7357,4270.9,4270.5,0.24]
[1757174421117,0.7357,4270.9,4270.8,0.2046]
[1757174421420,0.7357,4270.9,4270.5,0.24]
[1757174422118,0.4258,4270.3,4270.2,0.24]
[1757174422319,0.7357,4270.3,4270.2,0.24]
[1757174422515,0.7357,4270.3,4270.2,0.4446]
[1757174423121,0.2113,4270.3,4270.2,0.9782]
[1757174423423,0.3099,4270.8,4270.2,0.9782]
[1757174423618,0.2113,4270.4,4270.3,0.212]
[1757174423923,0.5212,4270.4,4270.3,0.7382]
[1757174424617,0.7357,4270.4,4270.3,0.2046]
[1757174424821,0.7357,4270.4,4270.3,0.5262]
[1757174425122,0.7357,4270.4,4270.3,0.7382]
[1757174425910,0.7357,4270.4,4270.3,0.4166]
[1757174426316,0.7357,4270.4,4270.3,0.7382]
[1757174427124,0.7357,4270.4,4270.3,0.2046]
[1757174427728,0.7357,4270.4,4270.3,0.24]
[1757174430127,0.62126708,4270.4,4270.1,0.24]
[1757174430326,0.7357,4270.2,4270.1,0.24]
[1757174430925,0.7357,4270.2,4270.1,0.4446]
[1757174431627,0.131,4270.0,4269.9,0.24]
[1757174431817,0.5568,4270.0,4269.9,0.24]
[1757174432219,4.69577009,4270.0,4269.9,0.24]
[1757174432419,4.38580565,4270.0,4269.2,0.3216]
[1757174432719,4.38580565,4270.0,4269.7,0.24]
[1757174432720,0.7357,4269.8,4269.7,0.24]
[1757174434926,0.7357,4269.8,4269.2,0.3216]
[1757174435131,0.7357,4269.8,4269.3,0.5616]
[1757174435419,0.7357,4269.4,4269.3,0.6566]
[1757174435621,0.3099,4269.9,4269.3,0.6566]
[1757174435814,0.2113,4269.9,4269.8,0.4166]
[1757174436125,0.5212,4269.9,4269.8,0.9782]
[1757174436827,0.7357,4269.9,4269.8,0.9782]
[1757174439225,3.2078,4270.0,4269.9,0.3216]
[1757174439428,0.3099,4270.7,4270.4,0.7382]
[1757174439429,3.4191,4270.5,4270.4,0.7382]
[1757174439631,4.03696427,4270.5,4270.4,0.7382]
[1757174439827,4.34686427,4270.5,4270.4,0.7382]
[1757174440733,4.56136427,4270.5,4270.4,0.7382]
[1757174441926,4.34686427,4270.5,4270.4,0.7382]
[1757174442231,3.2078,4270.5,4270.4,0.7382]
[1757174443525,0.4258,4270.3,4270.2,0.24]
[1757174443725,0.4258,4270.3,4269.3,3.2078]
[1757174443929,0.2113,4269.2,4269.1,34.0386]
[1757174444129,0.2113,4269.2,4269.1,34.2786]
[1757174445726,0.2113,4269.2,4269.1,34.0386]
[1757174446023,0.2113,4269.2,4269.1,34.2786]
[1757174447528,0.5212,4269.5,4269.4,0.4166]
[1757174447733,0.5212,4269.5,4269.4,0.7382]
[1757174448435,0.7357,4269.5,4269.4,0.7382]
[1757174448826,3.6159,4270.0,4269.9,0.4247]
[1757174449027,3.6159,4270.0,4269.9,0.9605]
[1757174449431,4.54726009,4270.0,4269.9,0.9605]
[1757174450021,0.4439,4270.5,4269.9,0.9605]
[1757174450227,1.14221055,4270.4,4270.3,0.7205]
[1757174450425,0.82931055,4270.4,4270.3,0.9605]
[1757174450732,0.61851055,4270.4,4270.3,0.9605]
[1757174450931,3.2078,4270.7,4270.3,0.6647]
[1757174451133,0.82961787,4270.6,4270.5,0.5507]
[1757174451432,1.33981787,4270.6,4270.5,0.7205]
[1757174451636,0.82961787,4270.6,4270.5,0.8465]
[1757174451823,0.61881787,4270.6,4270.5,0.8465]
[1757174452730,3.2078,4271.4,4270.5,0.8465]
[1757174453039,0.82986444,4271.3,4271.2,0.7205]
[1757174453334,0.82986444,4271.3,4271.2,0.9605]
[1757174453633,0.61906444,4271.3,4271.2,0.9605]
[1757174453937,3.4186,4271.4,4271.3,0.7205]
[1757174454838,3.9288,4271.4,4271.3,0.7205]
[1757174455033,3.9288,4271.4,4271.3,0.207]
[1757174455229,0.4081,4270.9,4270.8,0.116]
[1757174455429,0.721,4270.9,4270.8,0.8365]
[1757174455736,0.2108,4270.9,4270.8,0.8365]
[1757174456936,3.2078,4271.4,4270.8,0.5407]
[1757174457237,3.7315,4271.4,4271.3,0.7205]
[1757174457430,4.34995245,4271.4,4271.3,0.9595]
[1757174457630,3.7315,4271.4,4271.3,0.9595]
[1757174458032,3.2078,4271.9,4271.4,0.2958]
[1757174458235,3.9288,4271.9,4271.8,0.4247]
[1757174458542,3.9288,4271.9,4271.8,0.6637]
[1757174459044,0.721,4271.9,4271.8,0.9595]
[1757174459737,0.4081,4271.9,4271.8,0.9595]
[1757174459943,0.721,4271.9,4271.8,0.9595]
[1757174460439,0.5237,4271.9,4271.8,0.9595]
[1757174460636,0.3129,4272.4,4271.8,0.6637]
[1757174460836,0.721,4272.4,4271.8,0.5348]
[1757174461042,0.3129,4272.3,4271.8,0.5348]
[1757174461346,0.721,4271.9,4271.8,0.9595]
[1757174461840,0.1273,4273.0,4270.9,3.5036]
[1757174461841,0.3129,4271.4,4270.9,3.5036]
[1757174462033,0.8483,4271.0,4270.9,0.4247]
[1757174462235,0.721,4271.0,4270.9,0.9595]
[1757174462538,0.5237,4271.4,4271.3,0.7205]
[1757174464435,0.721,4271.4,4271.3,0.2113]
[1757174464634,0.4081,4270.8,4270.7,34.0228]
[1757174464841,0.721,4270.8,4270.7,34.2618]
[1757174465937,0.721,4270.8,4270.7,34.0228]
[1757174466239,0.721,4270.8,4270.7,34.2618]
[1757174466442,0.721,4270.8,4270.7,33.727]
[1757174466643,0.1273,4271.0,4270.4,3.2078]
[1757174466644,0.8483,4270.5,4270.4,3.2078]
[1757174466830,0.8483,4270.5,4270.4,3.6581]
[1757174467237,0.1273,4271.0,4270.4,4.1673]
[1757174467441,0.4081,4270.9,4270.8,0.4247]
[1757174467640,0.721,4270.9,4270.8,0.9595]
[1757174468449,0.721,4270.9,4270.8,0.6637]
[1757174469138,0.721,4270.9,4270.8,0.239]
[1757174469334,0.5354,4270.5,4269.8,0.2958]
[1757174469647,0.8483,4270.5,4270.4,0.5071]
[1757174469943,0.8483,4270.5,4270.4,0.7461]
[1757174470246,0.8483,4270.5,4270.4,0.239]
[1757174470645,0.8483,4270.5,4270.4,0.4503]
[1757174471144,0.8483,4270.5,4270.4,0.7461]
[1757174471346,0.8483,4270.5,4270.4,0.9595]
[1757174471845,0.8483,4270.5,4270.4,0.4503]
[1757174472646,0.8483,4270.5,4270.4,0.239]
[1757174473747,0.8483,4270.5,4270.4,0.4503]
[1757174474743,0.721,4270.5,4270.4,0.9595]
[1757174475037,3.7315,4270.9,4270.8,0.7205]
[1757174475440,3.9288,4270.9,4270.8,0.7205]
[1757174476141,3.9288,4270.9,4270.8,0.2113]
[1757174478046,3.6159,4270.9,4270.8,0.7205]
[1757174478236,3.4186,4270.9,4270.8,0.7205]
[1757174478437,3.9288,4270.9,4270.8,0.7205]
[1757174479046,3.521,4271.6,4270.9,0.3158]
[1757174479347,1.31569648,4271.5,4271.4,0.7109]
[1757174480142,0.7048,4271.5,4271.4,0.7109]
[1757174480337,1.31596095,4271.5,4271.4,0.7109]
[1757174480547,0.61116095,4271.5,4271.4,0.7109]
[1757174480748,3.2078,4271.6,4271.5,0.8296]
[1757174481049,3.2078,4272.3,4271.5,0.8296]
[1757174481251,1.31590271,4272.2,4271.8,0.3158]
[1757174481438,0.7048,4272.0,4271.9,0.7491]
[1757174481841,0.7048,4272.0,4271.9,0.9499]
[1757174482346,0.1945,4272.0,4271.9,0.9499]
[1757174483146,0.5077,4272.0,4271.9,0.9499]
[1757174483348,0.7048,4272.0,4271.9,0.9499]
[1757174483553,0.834,4272.0,4271.9,0.9499]
[1757174484753,0.5077,4272.0,4271.9,0.9499]
[1757174485456,0.7048,4272.0,4271.9,0.9499]
[1757174486253,0.7048,4272.0,4271.9,0.3951]
[1757174486254,0.834,4272.0,4271.9,0.3951]
[1757174486460,0.834,4272.0,4271.9,0.6341]
[1757174487251,0.834,4272.0,4271.9,0.9499]
[1757174487252,0.7048,4272.0,4271.9,0.9499]
[1757174488447,0.5077,4272.0,4271.9,0.9499]
[1757174488646,0.834,4272.0,4271.9,0.7491]
[1757174488847,0.834,4272.0,4271.9,0.9499]
[1757174489652,0.7048,4272.0,4271.9,0.9499]
[1757174490163,0.834,4272.0,4271.9,0.9499]
[1757174490659,0.834,4272.0,4271.9,0.7109]